fUSD/lending_fUSD_20241125
["ID","MTS","AMOUNT","RATE_DAILY","PERIOD"]
[343256608,1732533045329,-500.0,0.00041247,21]
[343256609,1732533045339,-500.0,0.00041247,21]
[343256610,1732533045348,-477.10361404,0.00041247,21]
[343256611,1732533045387,-22.89638596,0.00041247,21]
[343256612,1732533045397,-616.5,0.00041265,21]
[343256613,1732533045407,-616.5,0.00041265,21]
[343256614,1732533045417,-616.5,0.00041265,21]
[343256615,1732533045427,-616.5,0.00041265,21]
[343256616,1732533045436,-318.72893055,0.00041265,21]
[343256617,1732533045447,-297.81788921,0.00041265,21]
[343256618,1732533045457,-1190.31,0.00041265,21]
[343256619,1732533045471,-277.56517557,0.00041265,21]
[343256620,1732533045487,-912.74482443,0.00041265,21]
[343256621,1732533045496,-1190.31,0.00041265,21]
[343256622,1732533045506,-1190.31,0.00041265,21]
[343256624,1732533045516,-1190.34066417,0.00041265,21]
[343256626,1732533045525,-500.0,0.00041266,21]
[343256628,1732533045535,-500.0,0.00041266,21]
[343256629,1732533045545,-1102.69,0.00041266,21]
[343256630,1732533045554,-767.35,0.00041266,21]
[343256631,1732533045564,-555.98,0.00041519,21]
[343256632,1732533045574,-500.0,0.00041519,21]
[343256633,1732533045583,-2213.91,0.00041519,21]
[343256635,1732533045592,-500.0,0.00041519,21]
[343256636,1732533045602,-500.0,0.00041519,21]
[343256637,1732533045612,-500.0,0.00041519,21]
[343256638,1732533045621,-500.0,0.00041519,21]
[343256639,1732533045631,-500.0,0.00041519,21]
[343256640,1732533045640,-500.0,0.00041519,21]
[343256641,1732533045650,-577.14,0.00041519,21]
[343256642,1732533045659,-500.0,0.00041519,21]
[343256643,1732533045668,-500.0,0.00041519,21]
[343256644,1732533045677,-500.0,0.00041519,21]
[343256645,1732533045687,-1617.04,0.00041519,21]
[343256646,1732533045696,-546.9,0.00041519,21]
[343256647,1732533045706,-1763.64,0.00041519,21]
[343256648,1732533045717,-4763.25,0.00041519,21]
[343256649,1732533045727,-500.0,0.0004152,21]
[343256650,1732533045737,-500.0,0.0004152,21]
[343256651,1732533045747,-500.0,0.0004152,21]
[343256652,1732533045758,-500.0,0.0004152,21]
[343256653,1732533045767,-252.76,0.0004152,21]
[343256654,1732533045778,-500.0,0.0004152,21]
[343256655,1732533045788,-536.08299859,0.0004152,21]
[343256656,1732533045798,-500.0,0.0004152,21]
[343256657,1732533045808,-500.0,0.0004152,21]
[343256658,1732533045818,-263.24,0.0004152,21]
[343256659,1732533045828,-480.75,0.0004152,21]
[343256660,1732533045838,-445.63,0.0004152,21]
[343256661,1732533045848,-659.31,0.0004152,21]
[343256662,1732533045858,-686.68,0.0004152,21]
[343256663,1732533045868,-500.0,0.0004152,21]
[343256664,1732533045879,-500.0,0.0004152,21]
[343256665,1732533045888,-500.0,0.0004152,21]
[343256666,1732533045899,-151.0,0.00041521,14]
[343256667,1732533045909,-500.0,0.00041521,21]
[343256668,1732533045920,-194.62,0.00041521,21]
[343256669,1732533045930,-426.78,0.00041521,21]
[343256670,1732533045940,-500.0,0.0004154,21]
[343256671,1732533045952,-517.60667027,0.0004154,21]
[343256672,1732533045965,-1102.69,0.0004154,21]
[343256673,1732533045975,-767.35,0.0004154,21]
[343256674,1732533045986,-182.66,0.00041688,2]
[343256675,1732533045996,-2213.91,0.00041793,21]
[343256676,1732533046006,-500.0,0.00041793,21]
[343256677,1732533046016,-500.0,0.00041793,21]
[343256678,1732533046026,-500.0,0.00041793,21]
[343256679,1732533046037,-372.21,0.00041793,21]
[343256680,1732533046047,-500.0,0.00041793,21]
[343256681,1732533046057,-259.13231206,0.00041793,21]
[343256682,1732533046068,-577.14,0.00041793,21]
[343256683,1732533046078,-500.0,0.00041793,21]
[343256684,1732533046089,-500.0,0.00041793,21]
[343256685,1732533046099,-500.0,0.00041793,21]
[343256686,1732533046109,-1617.04,0.00041793,21]
[343256687,1732533046119,-546.9,0.00041793,21]
[343256688,1732533046129,-1763.64,0.00041793,21]
[343256689,1732533046139,-4763.25,0.00041793,21]
[343256690,1732533046151,-500.0,0.00041794,21]
[343256691,1732533046161,-500.0,0.00041794,21]
[343256692,1732533046173,-500.0,0.00041794,21]
[343256693,1732533046184,-500.0,0.00041794,21]
[343256694,1732533046194,-151.0,0.00041794,14]
[343256695,1732533046205,-245.05,0.00041794,21]
[343256696,1732533046218,-500.0,0.00041794,21]
[343256697,1732533046228,-544.63,0.00041794,21]
[343256699,1732533046239,-659.31,0.00041794,21]
[343256701,1732533046251,-686.68,0.00041794,21]
[343256703,1732533046261,-500.0,0.00041794,21]
[343256704,1732533046271,-500.0,0.00041794,21]
[343256705,1732533046282,-500.0,0.00041794,21]
[343256706,1732533046292,-500.0,0.00041795,21]
[343256707,1732533046302,-229.0,0.000418,30]
[343256708,1732533046312,-500.0,0.00041814,21]
[343256709,1732533046323,-1102.69,0.00041814,21]
[343256710,1732533046333,-767.35,0.00041814,21]
[343256711,1732533046344,-230.56550048,0.00041969,15]
[343256713,1732533046354,-1000.0,0.00042,25]
[343256714,1732533046364,-500.0,0.00042066,21]
[343256715,1732533046375,-500.0,0.00042066,21]
[343256716,1732533046385,-500.0,0.00042066,21]
[343256717,1732533046395,-2213.91,0.00042067,21]
[343256718,1732533046405,-258.95,0.00042067,21]
[343256719,1732533046415,-500.0,0.00042067,21]
[343256720,1732533046426,-500.0,0.00042067,21]
[343256721,1732533046436,-500.0,0.00042067,21]
[343256722,1732533046447,-577.14,0.00042067,21]
[343256723,1732533046459,-500.0,0.00042067,21]
[343256724,1732533046469,-500.0,0.00042067,21]
[343256725,1732533046479,-557.27,0.00042067,21]
[343256726,1732533046490,-1617.04,0.00042067,21]
[343256727,1732533046500,-546.9,0.00042067,21]
[343256728,1732533046511,-1763.64,0.00042067,21]
[343256729,1732533046521,-4763.25,0.00042067,21]
[343256730,1732533046532,-179.0,0.00042068,7]
[343256731,1732533046543,-500.0,0.00042068,21]
[343256732,1732533046553,-500.0,0.00042068,21]
[343256733,1732533046563,-461.54835089,0.00042068,21]
[343256734,1732533046574,-329.96389672,0.00042068,21]
[343256735,1732533046585,-151.0,0.00042068,14]
[343256736,1732533046595,-500.0,0.00042068,21]
[343256737,1732533046606,-659.31,0.00042068,21]
[343256738,1732533046617,-686.68,0.00042068,21]
[343256739,1732533046628,-500.0,0.00042068,21]
[343256740,1732533046638,-500.0,0.00042068,21]
[343256741,1732533046648,-500.0,0.00042068,21]
[343256742,1732533046658,-500.0,0.00042069,21]
[343256743,1732533046669,-752.28,0.00042088,21]
[343256744,1732533046679,-291.1448575,0.00042088,21]
[343256745,1732533046690,-1102.69,0.00042088,21]
[343256746,1732533046702,-767.35,0.00042088,21]
[343256747,1732533046721,-374.29345389,0.00042091,30]
[343256748,1732533046732,-151.0,0.000422,14]
[343256749,1732533046742,-431.92407615,0.00042242,28]
[343256750,1732533046753,-500.0,0.0004234,21]
[343256751,1732533046764,-500.0,0.0004234,21]
[343256752,1732533046775,-500.0,0.0004234,21]
[343256753,1732533046785,-2213.91,0.00042341,21]
[343256754,1732533046799,-500.0,0.00042341,21]
[343256755,1732533046809,-500.0,0.00042341,21]
[343256756,1732533046820,-500.0,0.00042341,21]
[343256757,1732533046833,-577.14,0.00042341,21]
[343256758,1732533046847,-500.0,0.00042341,21]
[343256759,1732533046862,-500.0,0.00042341,21]
[343256760,1732533046875,-1617.04,0.00042341,21]
[343256761,1732533046887,-546.9,0.00042341,21]
[343256762,1732533046897,-1763.64,0.00042341,21]
[343256763,1732533046908,-4763.25,0.00042341,21]
[343256764,1732533046921,-155.439369,0.00042342,21]
[343256765,1732533046931,-500.0,0.00042342,21]
[343256766,1732533046942,-446.64,0.00042342,21]
[343256767,1732533046953,-500.0,0.00042342,21]
[343256768,1732533046966,-659.31,0.00042342,21]
[343256769,1732533046977,-686.68,0.00042342,21]
[343256770,1732533046989,-259.93,0.00042342,21]
[343256771,1732533047006,-500.0,0.00042342,21]
[343256772,1732533047018,-500.0,0.00042342,21]
[343256773,1732533047029,-500.0,0.00042343,21]
[343256774,1732533047040,-752.28,0.00042362,21]
[343256775,1732533047052,-1102.69,0.00042362,21]
[343256776,1732533047063,-767.35,0.00042362,21]
[343256777,1732533047074,-151.0,0.00042362,7]
[343256778,1732533047085,-151.0,0.00042362,14]
[343256779,1732533047096,-500.0,0.00042414,21]
[343256780,1732533047107,-151.0,0.00042465,14]
[343256781,1732533047117,-1000.0,0.000425,25]
[343256782,1732533047127,-194.20435917,0.00042515,31]
[343256783,1732533047137,-395.2026053,0.00042515,31]
[343256784,1732533047149,-383.7296,0.00042516,2]
[343256785,1732533047166,-181991.6685,0.00042516,2]
[343256786,1732533047182,-718670.2254,0.00042516,2]
[343256787,1732533047194,-500.0,0.00042614,21]
[343256788,1732533047205,-500.0,0.00042614,21]
[343256789,1732533047219,-500.0,0.00042614,21]
[343256790,1732533047231,-2213.91,0.00042615,21]
[343256791,1732533047242,-338.95,0.00042615,21]
[343256792,1732533047254,-500.0,0.00042615,21]
[343256793,1732533047267,-500.0,0.00042615,21]
[343256794,1732533047278,-577.14,0.00042615,21]
[343256795,1732533047290,-500.0,0.00042615,21]
[343256796,1732533047302,-500.0,0.00042615,21]
[343256797,1732533047313,-1617.04,0.00042615,21]
[343256798,1732533047325,-546.9,0.00042615,21]
[343256799,1732533047336,-1763.64,0.00042615,21]
[343256800,1732533047347,-4763.25,0.00042615,21]
[343256801,1732533047358,-500.0,0.00042616,21]
[343256802,1732533047368,-500.0,0.00042616,21]
[343256803,1732533047380,-659.31,0.00042616,21]
[343256804,1732533047392,-686.68,0.00042616,21]
[343256805,1732533047404,-500.0,0.00042616,21]
[343256806,1732533047415,-500.0,0.00042616,21]
[343256807,1732533047425,-349.91,0.00042617,21]
[343256808,1732533047436,-752.28,0.00042636,21]
[343256809,1732533047447,-1102.69,0.00042636,21]
[343256810,1732533047459,-767.35,0.00042636,21]
[343256811,1732533047471,-151.0,0.00042636,7]
[343256812,1732533047481,-261.809354,0.00042636,14]
[343256813,1732533047491,-151.0,0.0004266,14]
[343256814,1732533047502,-500.0,0.00042688,21]
[343256815,1732533047512,-216.098,0.00042791,2]
[343256816,1732533047523,-230.56550042,0.00042803,15]
[343256817,1732533047535,-434.06,0.00042829,30]
[343256818,1732533047545,-434.06,0.00042829,30]
[343256819,1732533047558,-765.65,0.00042829,30]
[343256820,1732533047568,-765.65,0.0004283,30]
[343256821,1732533047579,-500.0,0.00042888,21]
[343256822,1732533047590,-500.0,0.00042888,21]
[343256823,1732533047600,-500.0,0.00042888,21]
[343256824,1732533047611,-2213.91,0.00042889,21]
[343256825,1732533047621,-500.0,0.00042889,21]
[343256826,1732533047631,-500.0,0.00042889,21]
[343256827,1732533047641,-577.14,0.00042889,21]
[343256828,1732533047651,-500.0,0.00042889,21]
[343256829,1732533047662,-500.0,0.00042889,21]
[343256830,1732533047672,-1617.04,0.00042889,21]
[343256831,1732533047683,-546.9,0.00042889,21]
[343256832,1732533047695,-1763.64,0.00042889,21]
[343256833,1732533047706,-4763.25,0.00042889,21]
[343256834,1732533047720,-155.439369,0.0004289,21]
[343256835,1732533047732,-500.0,0.0004289,21]
[343256836,1732533047741,-151.0,0.0004289,14]
[343256837,1732533047751,-195.919941,0.0004289,14]
[343256838,1732533047761,-195.919941,0.0004289,14]
[343256839,1732533047771,-151.0,0.0004289,14]
[343256840,1732533047781,-375.12,0.0004289,21]
[343256841,1732533047791,-659.31,0.0004289,21]
[343256842,1732533047801,-686.68,0.0004289,21]
[343256843,1732533047812,-500.0,0.0004289,21]
[343256844,1732533047823,-500.0,0.0004289,21]
[343256845,1732533047834,-752.28,0.0004291,21]
[343256846,1732533047846,-1102.69,0.0004291,21]
[343256847,1732533047857,-767.35,0.0004291,21]
[343256848,1732533047868,-151.0,0.00042913,7]
[343256849,1732533047878,-500.0,0.00042962,21]
[343256850,1732533047888,-239.120086,0.00042978,14]
[343256851,1732533047899,-19810.2154476,0.00042983,2]
[343256852,1732533047909,-431.92407613,0.00042993,28]
[343256853,1732533047919,-161.7998,0.00043,14]
[343256854,1732533047928,-195.919941,0.00043,14]
[343256855,1732533047939,-195.919941,0.00043,14]
[343256856,1732533047949,-293.453085,0.00043,14]
[343256857,1732533047960,-1000.0,0.00043,25]
[343256858,1732533047971,-151.0,0.00043013,7]
[343256859,1732533047981,-500.0,0.00043162,21]
[343256860,1732533047991,-500.0,0.00043162,21]
[343256861,1732533048001,-500.0,0.00043162,21]
[343256862,1732533048011,-2213.91,0.00043163,21]
[343256863,1732533048022,-500.0,0.00043163,21]
[343256864,1732533048032,-500.0,0.00043163,21]
[343256865,1732533048043,-577.14,0.00043163,21]
[343256866,1732533048054,-500.0,0.00043163,21]
[343256867,1732533048065,-500.0,0.00043163,21]
[343256868,1732533048075,-1617.04,0.00043163,21]
[343256869,1732533048086,-546.9,0.00043163,21]
[343256870,1732533048097,-1763.64,0.00043163,21]
[343256871,1732533048107,-4763.25,0.00043163,21]
[343256872,1732533048118,-155.439369,0.00043164,21]
[343256873,1732533048128,-500.0,0.00043164,21]
[343256874,1732533048139,-659.31,0.00043164,21]
[343256875,1732533048151,-686.68,0.00043164,21]
[343256876,1732533048162,-500.0,0.00043164,21]
[343256877,1732533048176,-500.0,0.00043164,21]
[343256878,1732533048187,-752.28,0.00043184,21]
[343256879,1732533048198,-1102.69,0.00043184,21]
[343256880,1732533048211,-767.35,0.00043184,21]
[343256881,1732533048223,-500.0,0.00043236,21]
[343256882,1732533048235,-500.0,0.00043436,21]
[343256883,1732533048245,-500.0,0.00043436,21]
[343256884,1732533048259,-500.0,0.00043436,21]
[343256885,1732533048270,-2213.91,0.00043437,21]
[343256886,1732533048281,-500.0,0.00043437,21]
[343256887,1732533048291,-500.0,0.00043437,21]
[343256888,1732533048302,-577.14,0.00043437,21]
[343256889,1732533048312,-500.0,0.00043437,21]
[343256890,1732533048324,-500.0,0.00043437,21]
[343256891,1732533048334,-1617.04,0.00043437,21]
[343256892,1732533048344,-546.9,0.00043437,21]
[343256893,1732533048356,-1763.64,0.00043437,21]
[343256894,1732533048367,-4763.25,0.00043437,21]
[343256895,1732533048378,-500.0,0.00043438,21]
[343256896,1732533048389,-157.569788,0.00043438,7]
[343256897,1732533048399,-195.919941,0.00043438,14]
[343256898,1732533048410,-195.919941,0.00043438,14]
[343256899,1732533048420,-151.0,0.00043438,14]
[343256900,1732533048430,-151.0,0.00043438,14]
[343256901,1732533048440,-659.31,0.00043438,21]
[343256902,1732533048451,-686.68,0.00043438,21]
[343256903,1732533048461,-500.0,0.00043438,21]
[343256904,1732533048472,-500.0,0.00043438,21]
[343256905,1732533048482,-752.28,0.00043458,21]
[343256906,1732533048493,-1102.69,0.00043458,21]
[343256907,1732533048504,-767.35,0.00043458,21]
[343256908,1732533048515,-150.01,0.00043509,2]
[343256909,1732533048525,-500.0,0.0004351,21]
[343256910,1732533048536,-179.49,0.0004358,2]
[343256911,1732533048546,-2000.0,0.0004362,4]
[343256912,1732533048557,-214.0,0.0004362,2]
[343256913,1732533048566,-230.56550042,0.00043636,15]
[343256914,1732533048577,-182.66,0.00043673,2]
[343256915,1732533048588,-500.0,0.00043695,120]
[343256916,1732533048598,-2000.0,0.00043695,120]
[343256917,1732533048608,-500.0,0.00043695,120]
[343256918,1732533048619,-200.0,0.00043695,120]
[343256919,1732533048630,-151.0,0.00043699,120]
[343256920,1732533048640,-500.0,0.00043706,60]
[343256921,1732533048651,-500.0,0.00043706,60]
[343256922,1732533048661,-500.0,0.0004371,21]
[343256923,1732533048671,-500.0,0.0004371,21]
[343256924,1732533048682,-500.0,0.0004371,21]
[343256925,1732533048692,-2213.91,0.00043711,21]
[343256926,1732533048703,-500.0,0.00043711,21]
[343256927,1732533048716,-500.0,0.00043711,21]
[343256928,1732533048726,-577.14,0.00043711,21]
[343256929,1732533048740,-500.0,0.00043711,21]
[343256930,1732533048752,-500.0,0.00043711,21]
[343256931,1732533048770,-1617.04,0.00043711,21]
[343256932,1732533048781,-546.9,0.00043711,21]
[343256933,1732533048794,-1763.64,0.00043711,21]
[343256934,1732533048806,-4763.25,0.00043711,21]
[343256935,1732533048816,-500.0,0.00043712,21]
[343256936,1732533048828,-500.0,0.00043712,21]
[343256937,1732533048839,-1721.9,0.00043712,21]
[343256938,1732533048852,-2153.49,0.00043712,21]
[343256939,1732533048863,-500.0,0.00043712,21]
[343256940,1732533048873,-1113.59,0.00043712,21]
[343256941,1732533048883,-2119.8,0.00043712,21]
[343256942,1732533048894,-500.0,0.00043712,21]
[343256943,1732533048904,-399.92978528,0.00043712,21]
[343256944,1732533048915,-843.63,0.00043712,2]
[343256945,1732533048925,-302.55628556,0.00043712,21]
[343256946,1732533048935,-500.0,0.00043712,21]
[343256947,1732533048946,-362.25162255,0.00043712,21]
[343256948,1732533048956,-500.0,0.00043712,21]
[343256949,1732533048968,-1553.14,0.00043712,21]
[343256950,1732533048978,-500.0,0.00043712,21]
[343256951,1732533048991,-894.49,0.00043712,21]
[343256952,1732533049002,-1431.01,0.00043712,21]
[343256953,1732533049013,-512.9,0.00043712,21]
[343256954,1732533049023,-592.14173019,0.00043712,21]
[343256955,1732533049033,-348.1157236,0.00043712,21]
[343256956,1732533049044,-500.0,0.00043712,21]
[343256957,1732533049055,-1259.85,0.00043712,21]
[343256958,1732533049065,-500.0,0.00043712,21]
[343256959,1732533049076,-500.0,0.00043712,21]
[343256960,1732533049086,-3065.29,0.00043712,21]
[343256961,1732533049097,-702.07,0.00043712,21]
[343256962,1732533049107,-500.0,0.00043712,21]
[343256963,1732533049119,-500.0,0.00043712,21]
[343256964,1732533049131,-155.439369,0.00043712,21]
[343256965,1732533049142,-500.0,0.00043712,21]
[343256966,1732533049153,-659.31,0.00043712,21]
[343256967,1732533049166,-686.68,0.00043712,21]
[343256968,1732533049178,-500.0,0.00043712,21]
[343256969,1732533049190,-5528.84,0.00043713,21]
[343256970,1732533049201,-1922.44,0.00043713,21]
[343256971,1732533049216,-500.0,0.00043713,21]
[343256972,1732533049227,-185.7675,0.00043723,2]
[343256973,1732533049238,-500.0,0.00043732,21]
[343256974,1732533049252,-500.0,0.00043732,21]
[343256975,1732533049264,-761.85,0.00043732,21]
[343256976,1732533049274,-928.86,0.00043732,21]
[343256977,1732533049285,-500.0,0.00043732,21]
[343256978,1732533049297,-152.74788669,0.00043732,21]
[343256979,1732533049308,-500.0,0.00043732,7]
[343256980,1732533049319,-779.71,0.00043732,21]
[343256981,1732533049330,-500.0,0.00043732,21]
[343256982,1732533049342,-447.96731326,0.00043732,21]
[343256983,1732533049353,-500.0,0.00043732,21]
[343256984,1732533049363,-500.0,0.00043732,21]
[343256985,1732533049374,-500.0,0.00043732,21]
[343256986,1732533049385,-500.0,0.00043732,21]
[343256987,1732533049396,-580.99,0.00043732,21]
[343256988,1732533049406,-500.0,0.00043732,21]
[343256989,1732533049417,-500.0,0.00043732,21]
[343256990,1732533049427,-376.83981881,0.00043732,21]
[343256991,1732533049438,-818.46,0.00043732,21]
[343256992,1732533049449,-752.28,0.00043732,21]
[343256993,1732533049461,-1102.69,0.00043732,21]
[343256994,1732533049472,-767.35,0.00043732,21]
[343256995,1732533049482,-195.919941,0.00043733,14]
[343256996,1732533049497,-195.919941,0.00043733,14]
[343256997,1732533049507,-431.92407613,0.00043744,28]
[343256998,1732533049518,-204.0,0.0004375,30]
[343256999,1732533049528,-201.0,0.0004375,30]
[343257000,1732533049538,-204.0,0.0004375,2]
[343257001,1732533049548,-1000.0,0.00043751,2]
[343257002,1732533049558,-500.0,0.00043784,21]
[343257003,1732533049569,-765.65,0.00043788,30]
[343257004,1732533049580,-765.65,0.00043788,30]
[343257005,1732533049591,-765.65,0.00043788,30]
[343257006,1732533049601,-765.65,0.00043788,30]
[343257007,1732533049611,-765.65,0.00043788,30]
[343257008,1732533049622,-765.65,0.00043788,30]
[343257009,1732533049632,-817.5,0.00043788,30]
[343257010,1732533049642,-2000.0,0.000438,10]
[343257011,1732533049652,-500.0,0.000438,7]
[343257012,1732533049662,-70000.0,0.000438,60]
[343257013,1732533049673,-6985.86447585,0.000438,4]
[343257014,1732533049683,-1000.0,0.000438,7]
[343257015,1732533049693,-4822.0,0.00043834,2]
[343257016,1732533049703,-4822.0,0.00043834,2]
[343257017,1732533049714,-151.0,0.00043834,14]
[343257018,1732533049724,-151.0,0.00043834,14]
[343257019,1732533049735,-500.0,0.00043835,21]
[343257020,1732533049746,-2000.0,0.00043836,15]
[343257021,1732533049756,-230990.78481653,0.000439,2]
[343257022,1732533049860,-550.74,0.0004015,21]
[343257023,1732533049870,-500.0,0.0004015,21]
[343257024,1732533049880,-174.96,0.00040424,21]
[343257025,1732533049890,-182.98,0.00041509,10]
[343257026,1732533049900,-570.86838623,0.00043712,21]
[343257027,1732533049910,-553.0700283,0.000439,2]
[343257028,1732533050003,-780.8,0.000439,2]
[343257029,1732533050015,-1683.16245074,0.000439,2]
[343257030,1732533050026,-388.78802235,0.000439,2]
[343257031,1732533050591,-500.0,0.0004015,21]
[343257032,1732533050601,-230.54486747,0.0004015,10]
[343257033,1732533050610,-500.0,0.0004015,21]
[343257034,1732533050620,-500.0,0.0004015,21]
[343257035,1732533050629,-500.0,0.00040424,21]
[343257036,1732533050638,-190.06,0.00040424,21]
[343257037,1732533050648,-500.0,0.00040698,21]
[343257038,1732533050657,-500.0,0.00040972,21]
[343257039,1732533050667,-500.0,0.00041246,21]
[343257040,1732533050677,-1996.29,0.00041519,21]
[343257041,1732533050686,-7.20166867,0.0004152,21]
[343257042,1732533050698,-492.79833133,0.0004152,21]
[343257043,1732533050708,-1686.7084347,0.00041793,21]
[343257044,1732533050723,-309.5815653,0.00041793,21]
[343257045,1732533050732,-649.5317542,0.00041794,21]
[343257046,1732533050742,-1996.29,0.00042067,21]
[343257047,1732533050752,-1996.29,0.00042341,21]
[343257048,1732533050762,-1996.29,0.00042615,21]
[343257049,1732533050772,-1996.29,0.00042889,21]
[343257050,1732533050781,-1996.29,0.00043163,21]
[343257051,1732533050791,-1996.29,0.00043437,21]
[343257052,1732533050801,-1920.56354667,0.00043509,2]
[343257053,1732533050810,-1996.29,0.00043711,21]
[343257054,1732533050820,-69648.33355041,0.000439,2]
[343257055,1732533050829,-6242.43590503,0.000439,30]
[343257056,1732533050839,-195.919941,0.000439,14]
[343257057,1732533050848,-195.919941,0.000439,14]
[343257058,1732533050858,-500.0,0.00043927,30]
[343257059,1732533050868,-500.0,0.00043927,30]
[343257060,1732533050877,-500.0,0.00043927,30]
[343257061,1732533050887,-500.0,0.00043927,30]
[343257062,1732533050896,-500.0,0.00043927,30]
[343257063,1732533050905,-500.0,0.00043927,30]
[343257064,1732533050915,-500.0,0.00043927,30]
[343257065,1732533050924,-293.45011174,0.00043927,30]
[343257066,1732533050934,-13709.4772168,0.0004397,2]
[343257067,1732533050943,-500.0,0.00043984,21]
[343257068,1732533050953,-207.29108577,0.00043984,21]
[343257069,1732533050962,-500.0,0.00043984,21]
[343257070,1732533050973,-2213.91,0.00043985,21]
[343257071,1732533050983,-500.0,0.00043985,21]
[343257072,1732533050993,-500.0,0.00043985,21]
[343257073,1732533051003,-577.14,0.00043985,21]
[343257074,1732533051013,-500.0,0.00043985,21]
[343257075,1732533051023,-500.0,0.00043985,21]
[343257076,1732533051032,-1617.04,0.00043985,21]
[343257077,1732533051042,-546.9,0.00043985,21]
[343257078,1732533051052,-1763.64,0.00043985,21]
[343257079,1732533051062,-4763.25,0.00043985,21]
[343257080,1732533051072,-1996.29,0.00043985,21]
[343257081,1732533051082,-500.0,0.00043986,21]
[343257082,1732533051092,-500.0,0.00043986,21]
[343257083,1732533051102,-1721.9,0.00043986,21]
[343257084,1732533051112,-2153.49,0.00043986,21]
[343257085,1732533051121,-500.0,0.00043986,21]
[343257086,1732533051130,-1113.59,0.00043986,21]
[343257087,1732533051140,-2119.8,0.00043986,21]
[343257088,1732533051150,-500.0,0.00043986,21]
[343257089,1732533051160,-843.63,0.00043986,2]
[343257090,1732533051172,-294.93440586,0.00043986,21]
[343257091,1732533051183,-500.0,0.00043986,21]
[343257092,1732533051192,-1553.14,0.00043986,21]
[343257093,1732533051202,-500.0,0.00043986,21]
[343257094,1732533051213,-235.31975947,0.00043986,21]
[343257095,1732533051225,-659.17024053,0.00043986,21]
[343257096,1732533051235,-1431.01,0.00043986,21]
[343257097,1732533051246,-512.9,0.00043986,21]
[343257098,1732533051256,-500.0,0.00043986,21]
[343257099,1732533051265,-1259.85,0.00043986,21]
[343257100,1732533051275,-500.0,0.00043986,21]
[343257101,1732533051285,-500.0,0.00043986,21]
[343257102,1732533051294,-3065.29,0.00043986,21]
[343257103,1732533051304,-702.07,0.00043986,21]
[343257104,1732533051313,-173.80095468,0.00043986,21]
[343257105,1732533051323,-500.0,0.00043986,21]
[343257106,1732533051333,-155.439369,0.00043986,21]
[343257107,1732533051343,-500.0,0.00043986,21]
[343257108,1732533051352,-659.31,0.00043986,21]
[343257109,1732533051362,-686.68,0.00043986,21]
[343257110,1732533051372,-419.97146623,0.00043986,21]
[343257111,1732533051388,-500.0,0.0004015,21]
[343257112,1732533051398,-80.02853377,0.00043986,21]
[343257113,1732533051408,-3678.44423569,0.00043987,21]
[343257114,1732533051419,-1850.39576431,0.00043987,21]
[343257115,1732533051428,-1922.44,0.00043987,21]